Cogmind - Beta 13 @@@ ROGUE MODE // 2024.04.07 @ 23:48:38 Player: darki Result: Escaped! Performance ------------- Evolutions (9) 4500 Regions Visited (17) 3400 Robots Destroyed (74) 370 Value Destroyed (2486) 2486 Prototype IDs (54) 1080 Alien Tech Used (0) 0 Bonus (6963) 6963 TOTAL SCORE: 18799 Bonus ------- High Alert Combat Kills 278 Follower Combat Kills 1301 Entered DSFs 500 Network Hubs Disabled 200 Aligned with FarCom 300 Met Zhirov 300 Built Enhanced Grunts 300 A7 Reached Mainframe 300 Met R17 at Cetus 500 Win 3000 Win Speed 25 Friendly Fire -41 Cogmind --------- Core Integrity 1477/1600 Matter 295/300 Energy 146/150 System Corruption 4% Temperature Cool (8) Movement Flying (32) Location To Epsilon Eridani Parts ------- > --- POWER (2) -------- Micro Antimatter Reactor > --- PROPULSION (8) --- Cooled VTOL Module Q-thruster Impulse Thruster Array Impulse Thruster Array > --- UTILITY (13) ----- Advanced Signal Interpreter Improved Terrain Scanner Advanced Terrain Scan Processor Advanced ECM Suite Centrium Medium Armor Plating Improved Hacking Suite Advanced Hacking Suite System Shield Improved System Shield Advanced System Shield Advanced System Shield > --- WEAPON (2) ------- Shock Maul Kinetic Spear > --- INVENTORY (5) ---- Advanced Sensor Array Remote Force Field Enhanced Force Lance Peak State ------------ > --- POWER ------------ Micro Antimatter Reactor Light Quantum Reactor > --- PROPULSION ------- Cooled VTOL Module Cooled VTOL Module Cooled VTOL Module Q-thruster Impulse Thruster Array Impulse Thruster Array > --- UTILITY ---------- Structural Scanner Advanced Signal Interpreter Improved Terrain Scanner Advanced Terrain Scan Processor Advanced ECM Suite Hacking Suite Improved Hacking Suite Advanced Hacking Suite Advanced Hacking Suite System Shield Improved System Shield Advanced System Shield Advanced System Shield > --- WEAPON ----------- Fusion Bomb Launcher Kinetic Spear > --- INVENTORY -------- Advanced Sensor Array Centrium Medium Armor Plating Remote Force Field Shock Maul Enhanced Force Lance [Rating: 147] Favorites ----------- Power Ion Engine Engine Ion Engine Reactor Micro Antimatter Reactor Propulsion Cooled VTOL Module Leg Aluminum Leg Flight Unit Cooled VTOL Module Utility Hacking Suite Device Improved Terrain Scanner Storage High-capacity Storage Unit Processor Advanced Terrain Scan Processor Hackware Hacking Suite Protection Centrium Medium Armor Plating Weapon Firepult Energy Gun Small Laser Energy Cannon Firepult Ballistic Gun Assault Rifle Launcher Fusion Bomb Launcher Impact Weapon Shock Maul Slashing Weapon Greatsword Piercing Weapon Kinetic Spear Build | -11 -10 -10 -10 -9 -8 -7 -6 -5 -5 -5 -5 -5 -4 -3 -2 -2 -1 ------- Run | Yrd Mat Min Exi Min Mat Fac Fac Fac Ext Cet Arc Hub Fac Res Res DSF Acc Slots Evolved 18 | . . . . . 4 2 2 2 . . . . 2 2 2 . 2 Power 1 | . . . . . 1 . . . . . . . . . . . . Propulsion 6 | . . . . . 1 . 2 . . . . . . . 2 . 1 Utility 11 | . . . . . 2 2 . 2 . . . . 2 2 . . 1 Weapon . | . . . . . . . . . . . . . . . . . . Parts Attached 76 | . . . 3 3 8 9 15 3 4 4 3 1 3 7 . 5 8 Power 11 | . . . 1 . 1 1 4 . 1 1 . . . 1 . . 1 Engine 8 | . . . 1 . 1 1 4 . 1 . . . . . . . . Core . | . . . . . . . . . . . . . . . . . . Reactor 3 | . . . . . . . . . . 1 . . . 1 . . 1 Propulsion 13 | . . . . . 3 3 2 . . . . . . . . 4 1 Treads . | . . . . . . . . . . . . . . . . . . Leg 3 | . . . . . 3 . . . . . . . . . . . . Wheel . | . . . . . . . . . . . . . . . . . . Hover . | . . . . . . . . . . . . . . . . . . Flight 10 | . . . . . . 3 2 . . . . . . . . 4 1 Utility 37 | . . . 1 3 3 3 7 3 2 2 2 . 3 3 . 1 4 Device 14 | . . . . 2 3 . 4 2 . 1 . . 1 . . 1 . Storage 1 | . . . 1 . . . . . . . . . . . . . . Processor 5 | . . . . 1 . 1 2 . . . . . . 1 . . . Hackware 10 | . . . . . . . . 1 . . 2 . 2 2 . . 3 Protection 7 | . . . . . . 2 1 . 2 1 . . . . . . 1 Artifact . | . . . . . . . . . . . . . . . . . . Weapon 15 | . . . 1 . 1 2 2 . 1 1 1 1 . 3 . . 2 Energy Gun . | . . . . . . . . . . . . . . . . . . Energy Cannon 2 | . . . 1 . 1 . . . . . . . . . . . . Ballistic Gun . | . . . . . . . . . . . . . . . . . . Ballistic Cannon . | . . . . . . . . . . . . . . . . . . Launcher 3 | . . . . . . . . . 1 1 . . . . . . 1 Special Weapon . | . . . . . . . . . . . . . . . . . . Impact Weapon 4 | . . . . . . . 2 . . . 1 . . . . . 1 Slashing Weapon 3 | . . . . . . 2 . . . . . 1 . . . . . Piercing Weapon 3 | . . . . . . . . . . . . . . 3 . . . Special Melee Weapon . | . . . . . . . . . . . . . . . . . . Unidentified Prototypes 4 | . . . . . . 1 1 . . 1 . . . 1 . . . Parts Lost 19 | . . . . . 5 . . . 1 1 . . . 1 . 4 7 Power 2 | . . . . . 1 . . . . . . . . . . . 1 Propulsion 8 | . . . . . 3 . . . . . . . . . . 3 2 Utility 7 | . . . . . 1 . . . 1 . . . . 1 . 1 3 Weapon 2 | . . . . . . . . . . 1 . . . . . . 1 Highest Loss Streak 5 | . . . . . 2 . . . 1 1 . . . 1 . 4 5 To Critical Strikes . | . . . . . . . . . . . . . . . . . . Average Slot Usage (%) 79 | . 85 85 78 84 68 53 82 94 74 74 88 88 91 91 86 87 87 Engine 8 | . 14 14 14 14 17 7 8 11 6 4 . . . . . . . Reactor 1 | . . . . . . . . . . . 5 5 5 4 4 4 7 Leg 13 | . 28 28 28 28 22 11 . . . . . . . . . . . Flight 12 | . . . . . . 5 32 29 29 29 29 29 26 23 21 23 20 Device 8 | . . . . 9 9 12 12 23 5 5 5 5 7 9 8 9 11 Storage 6 | . 14 14 16 14 9 5 . . . . . . . . . . . Processor 6 | . . . . 3 . 1 14 17 12 11 11 11 10 12 13 13 8 Hackware 6 | . . . . . . . . 4 5 5 17 17 22 26 26 26 30 Protection 2 | . . . . . . 1 7 . 4 11 11 11 7 4 4 2 . Energy Cannon 5 | . . . 9 14 8 5 . . . . . . . . . . . Impact Weapon 1 | . . . . . . . . 5 5 3 5 5 5 4 4 4 1 Naked Turns . | . . . . . . . . . . . . . . . . . . Heaviest Build 72 | 11 11 11 72 68 72 67 24 24 25 36 22 25 25 23 22 22 42 Greatest Support 61 | 20 20 20 20 20 35 25 25 25 25 25 25 35 35 35 25 47 61 Greatest Overweight (x) 22 | . . . 3 3 22 2 . . . 1 . . . . . . . Average Overweight (x) . | . . . . 3 2 . . . . . . . . . . . . Largest Inventory Capacity 20 | . 8 8 20 20 20 20 5 5 5 5 5 5 5 5 5 5 5 Average Capacity 11 | . 8 8 10 20 20 16 5 5 5 5 5 5 5 5 5 5 5 Most Carried 19 | . 8 7 8 17 18 19 5 4 5 5 5 4 4 5 5 5 5 Average Carried 8 | . 7 7 7 11 16 14 3 3 4 4 4 4 3 4 5 5 4 Final Capacity 20 | 8 8 8 20 20 20 5 5 5 5 5 5 5 5 5 5 5 5 Final Carried 17 | 6 7 7 8 17 17 5 5 4 4 5 4 4 3 5 5 5 3 Class Distribution -------------------- 45% | Mutant 9% | Hacker-Scout 7% | Scavenger-Mutant 7% | Scout 7% | Wizard-Scout 6% | Wizard-Ninja 5% | Scavenger-Scout 4% | Commander-Scout 3% | Sprinter Dominant Class ---------------- Mutant | -10/Materials Mutant | -10/Mines Mutant | -10/Exiles Mutant | -9/Mines Mutant | -8/Materials Scavenger-Mutant | -7/Factory Scavenger-Scout | -6/Factory Scavenger-Scout | -5/Factory Scout | -5/Extension Commander-Scout | -5/Cetus Hacker-Scout | -5/Archives Hacker-Scout | -5/Hub_04(d) Hacker-Scout | -4/Factory Wizard-Scout | -3/Research Wizard-Scout | -2/Research Wizard-Scout | -2/DSF Wizard-Ninja | -1/Access Resources | -11 -10 -10 -10 -9 -8 -7 -6 -5 -5 -5 -5 -5 -4 -3 -2 -2 -1 ----------- Run | Yrd Mat Min Exi Min Mat Fac Fac Fac Ext Cet Arc Hub Fac Res Res DSF Acc Matter Collected 1374 | 195 26 . . 118 219 88 112 70 107 122 30 . 30 70 . 15 172 Remotely . | . . . . . . . . . . . . . . . . . . Salvage Created 3073 | . 43 . . 34 1080 88 464 142 868 28 160 23 . 59 . . 84 Parts 109 | . 6 . . 1 45 6 23 . 13 4 4 . . 4 . . 3 Haulers Intercepted 3 | . . . . . 3 . . . . . . . . . . . . Recyclers Shooed 3 | . . . . . 2 1 . . . . . . . . . . . Parts Field Recycled . | . . . . . . . . . . . . . . . . . . Retrieved Matter . | . . . . . . . . . . . . . . . . . . Parts Self-Destructed . | . . . . . . . . . . . . . . . . . . Prevented . | . . . . . . . . . . . . . . . . . . Kills | -11 -10 -10 -10 -9 -8 -7 -6 -5 -5 -5 -5 -5 -4 -3 -2 -2 -1 ------- Run | Yrd Mat Min Exi Min Mat Fac Fac Fac Ext Cet Arc Hub Fac Res Res DSF Acc Combat Hostiles Destroyed 40 | . 3 . . 1 19 . . . 14 . . . . . . . 3 Melee 6 | . . . . . . . . . 6 . . . . . . . . Guns 3 | . 3 . . . . . . . . . . . . . . . . Cannons 4 | . . . . . 4 . . . . . . . . . . . . AOE 15 | . . . . 1 11 . . . . . . . . . . . 3 Classes Destroyed 13 | . 1 . . 1 9 . . . 1 . . . . . . . 1 Worker 2 | . . . . . 1 . 1 . . . . . . . . . . Builder 7 | . . . . . 3 2 2 . . . . . . . . . . Tunneler 3 | . . . . . 1 . 2 . . . . . . . . . . Hauler 3 | . . . . . 3 . . . . . . . . . . . . Recycler 7 | . . . . . 1 1 3 1 1 . . . . . . . . Mechanic 1 | . . . . . 1 . . . . . . . . . . . . Operator 6 | . . . . . 1 . 1 1 2 . . . . 1 . . . Watcher 5 | . . . . . 1 . . . . 1 . 1 . 1 . . 1 Swarmer 11 | . 3 . . . 7 . . . . . . . . . . . 1 Grunt 23 | . . . . 1 10 . . . 11 . . . . . . . 1 Duelist 1 | . . . . . . . . . . . . . . . . . 1 Sentry 4 | . . . . . 2 . . . 2 . . . . . . . . Hunter 1 | . . . . . . . . . 1 . . . . . . . . Best Kill Streak 8 | . 3 . . 1 8 2 3 1 4 1 . 1 . 1 . . 3 Combat Bots Only 6 | . 3 . . 1 6 . . . 4 . . . . . . . 3 Max Kills in Single Turn 3 | . 1 . . 1 3 1 1 1 1 1 . 1 . 1 . . 1 Gunslinging . | . . . . . . . . . . . . . . . . . . Exploded 2 | . . . . 1 2 . . . . . . . . . . . 1 Melee 1 | . . . . . . . . . 1 . . . . . . . . Uniques/NPCs Destroyed . | . . . . . . . . . . . . . . . . . . Combat | -11 -10 -10 -10 -9 -8 -7 -6 -5 -5 -5 -5 -5 -4 -3 -2 -2 -1 -------- Run | Yrd Mat Min Exi Min Mat Fac Fac Fac Ext Cet Arc Hub Fac Res Res DSF Acc Hostile Shots Fired 223 | . 39 . . 3 51 . 1 1 25 34 . . 2 9 . 8 50 Missed 83 | . 12 . . 1 10 . 1 1 8 17 . . 1 5 . 1 26 Damage Taken 3262 | . 233 . . 22 602 . . . 514 391 . . 19 99 . 476 906 Core 608 | . 42 . . . 89 . . . 139 96 . . . 51 . 68 123 Absorbed by Shields 301 | . . . . . . . . . 40 74 . . . . . 161 26 Core Remaining (%) 92 | 100 . . . 83 83 100 100 . . . . 76 100 96 . 95 92 Volleys Fired 51 | . 8 . . 3 21 . . . 7 7 . . . . . . 5 Largest 2 | . 2 . . 1 1 . . . 1 1 . . . . . . 1 Hottest 250 | . 60 . . 250 250 . . . 33 33 . . . . . . 52 Shots Fired 55 | . 12 . . 3 21 . . . 7 7 . . . . . . 5 Gun 12 | . 12 . . . . . . . . . . . . . . . . Cannon 24 | . . . . 3 21 . . . . . . . . . . . . Launcher 19 | . . . . . . . . . 7 7 . . . . . . 5 Special . | . . . . . . . . . . . . . . . . . . Kinetic 8 | . 8 . . . . . . . . . . . . . . . . Thermal 28 | . 4 . . 3 21 . . . . . . . . . . . . Explosive 19 | . . . . . . . . . 7 7 . . . . . . 5 Electromagnetic . | . . . . . . . . . . . . . . . . . . Robot Hit Streak 12 | . 7 . . 12 5 . . . . . . . . . . . 5 Robot Miss Streak 3 | . 1 . . 1 3 . . . . . . . . . . . 1 Penetration Max . | . . . . . . . . . . . . . . . . . . Secondary Targets 1 | . 1 . . . . . . . . . . . . . . . . Max Gunslinging Chain 1 | . 1 . . . . . . . . . . . . . . . . Shots Hit Robots 85 | . 8 . . 2 12 5 10 2 28 4 5 1 . 2 . . 6 Core Hits 99 | . 3 . . 1 49 2 5 . 4 25 1 . . 1 . . 8 Critical Kills 2 | . . . . . . . . . 1 . 1 . . . . . . Critical Parts Destroyed 18 | . . . . . . . . 2 12 1 1 1 . 1 . . . Critical Strikes 22 | . . . . . . . . 2 14 1 2 1 . 2 . . . Smash 21 | . . . . . . . . 2 14 1 2 1 . 1 . . . Impale 1 | . . . . . . . . . . . . . . 1 . . . Melee Attacks 155 | . . . . . . 8 20 7 42 5 5 6 12 22 . . 28 Impact 76 | . . . . . . . . 7 42 5 5 6 1 5 . . 5 Slashing 43 | . . . . . . 8 20 . . . . . 11 4 . . . Piercing 36 | . . . . . . . . . . . . . . 13 . . 23 Sneak Attacks 22 | . . . . . . 3 8 1 9 . . . . . . . 1 Combat Hostiles 6 | . . . . . . . . . 6 . . . . . . . . Follow-up Attacks 1 | . . . . . . . . . . . . . . 1 . . . Damage Inflicted 8341 | . 107 . . 59 2021 408 1064 181 2092 770 627 58 . 142 . . 812 Guns 107 | . 107 . . . . . . . . . . . . . . . . Cannons 353 | . . . . 17 336 . . . . . . . . . . . . Explosions 3000 | . . . . 42 1680 . . . 13 572 . . . . . . 693 Melee 4876 | . . . . . . 408 1064 181 2079 198 627 58 . 142 . . 119 Ramming 5 | . . . . . 5 . . . . . . . . . . . . Kinetic 65 | . 65 . . . . . . . . . . . . . . . . Thermal 1822 | . 42 . . 59 1721 . . . . . . . . . . . . Explosive 1573 | . . . . . 295 . . . 13 572 . . . . . . 693 Electromagnetic . | . . . . . . . . . . . . . . . . . . Impact 3203 | . . . . . . . . 181 2079 198 627 58 . 60 . . . Slashing 1472 | . . . . . . 408 1064 . . . . . . . . . . Piercing 201 | . . . . . . . . . . . . . . 82 . . 119 Highest Corruption 4 | . . . . . . . . . . . . . . . . . 4 Average Corruption 4 | . . . . . . . . . . . . . . . . . 4 Corruption Purged . | . . . . . . . . . . . . . . . . . . Corruption Blocked . | . . . . . . . . . . . . . . . . . . Overload Shots . | . . . . . . . . . . . . . . . . . . Overflow Damage 2615 | . . . . . 58 212 439 181 1112 56 384 58 . 60 . . 55 Projectiles . | . . . . . . . . . . . . . . . . . . Explosions 96 | . . . . . 58 . . . . . . . . . . . 38 Melee 2519 | . . . . . . 212 439 181 1112 56 384 58 . 60 . . 17 Knockbacks 9 | . . . . . . . . 1 5 . 3 . . . . . . Impact 9 | . . . . . . . . 1 5 . 3 . . . . . . Kinetic . | . . . . . . . . . . . . . . . . . . Secondary . | . . . . . . . . . . . . . . . . . . Self-Inflicted Damage 62 | . . . . . 34 . . . 28 . . . . . . . . Shots 5 | . . . . . 4 . . . 1 . . . . . . . . Rammed . | . . . . . . . . . . . . . . . . . . Targets Rammed 1 | . . . . . 1 . . . . . . . . . . . . Kicked 1 | . . . . . 1 . . . . . . . . . . . . Crushed . | . . . . . . . . . . . . . . . . . . Highest Temperature 475 | . . . . 270 475 . 4 . 2 1 . 173 31 225 . . 36 Average Temperature 108 | . . . . 132 159 . 2 . 2 1 . 88 18 103 . . 7 Received Heat Transfer 489 | . 24 . . 12 234 . . . 129 18 . . . 9 . . 63 Effects 12 | . . . . 1 11 . . . . . . . . . . . . Shutdowns 4 | . . . . . 4 . . . . . . . . . . . . Energy Bleed 2 | . . . . 1 1 . . . . . . . . . . . . Interference 2 | . . . . . 2 . . . . . . . . . . . . Damage (major) 4 | . . . . . 4 . . . . . . . . . . . . Siege Activations . | . . . . . . . . . . . . . . . . . . Robots Corrupted . | . . . . . . . . . . . . . . . . . . Combat Hostiles . | . . . . . . . . . . . . . . . . . . Parts Fried 28 | . . . . . . . . 2 10 . 10 1 . 5 . . . Impact Corruptions 54 | . . . . . . . . 8 29 1 12 2 . 2 . . . Robots Melted 5 | . . . . . 5 . . . . . . . . . . . . Combat Hostiles 4 | . . . . . 4 . . . . . . . . . . . . Parts Melted 37 | . . . . 1 34 . . . 2 . . . . . . . . Heat Transferred 9460 | . 100 . . 240 9120 . . . . . . . . . . . . Parts Sabotaged . | . . . . . . . . . . . . . . . . . . Parts Stolen . | . . . . . . . . . . . . . . . . . . Parts Stripped . | . . . . . . . . . . . . . . . . . . Power Chain Reactions . | . . . . . . . . . . . . . . . . . . Alert | -11 -10 -10 -10 -9 -8 -7 -6 -5 -5 -5 -5 -5 -4 -3 -2 -2 -1 ------- Run | Yrd Mat Min Exi Min Mat Fac Fac Fac Ext Cet Arc Hub Fac Res Res DSF Acc Peak Influence 1009 | . 115 77 . 37 726 320 597 331 1009 671 488 433 281 347 82 61 323 Initial 481 | . . 44 . . 14 320 66 291 161 481 268 170 212 2 82 61 12 Average 211 | . 54 53 . 6 317 260 284 310 572 489 396 289 133 131 82 40 192 Maximum Alert Level 3 | . . . . . 3 1 2 1 3 2 2 2 1 1 . . 1 Low Security (%) 54 | . 100 100 . 100 29 30 35 . 5 . . 30 50 76 100 100 53 Level 1 27 | . . . . . 38 69 30 100 24 5 45 47 49 23 . . 46 Level 2 14 | . . . . . 29 . 33 . 31 94 54 21 . . . . . Level 3 3 | . . . . . 2 . . . 38 . . . . . . . . Level 4 . | . . . . . . . . . . . . . . . . . . Level 5 . | . . . . . . . . . . . . . . . . . . High Security . | . . . . . . . . . . . . . . . . . . Max Security . | . . . . . . . . . . . . . . . . . . Squads Dispatched 26 | . . . . 1 5 . 2 1 3 . . 7 . 3 . . 4 Investigation 7 | . . . . 1 . . 1 . 1 . . 2 . 1 . . 1 Extermination 2 | . . . . . . . . . . . . . . 1 . . 1 Reinforcement 11 | . . . . . 2 . . 1 2 . . 3 . 1 . . 2 Assault 2 | . . . . . 1 . 1 . . . . . . . . . . Garrison 4 | . . . . . 2 . . . . . . 2 . . . . . Intercept . | . . . . . . . . . . . . . . . . . . Searches Triggered . | . . . . . . . . . . . . . . . . . . Construction Impeded . | . . . . . . . . . . . . . . . . . . Haulers Reinforced . | . . . . . . . . . . . . . . . . . . Active Scanning Responses . | . . . . . . . . . . . . . . . . . . Cargo Convoy Interrupts . | . . . . . . . . . . . . . . . . . . Stealth | -11 -10 -10 -10 -9 -8 -7 -6 -5 -5 -5 -5 -5 -4 -3 -2 -2 -1 --------- Run | Yrd Mat Min Exi Min Mat Fac Fac Fac Ext Cet Arc Hub Fac Res Res DSF Acc Distress Signals 6 | . . . . . . . 1 . 1 2 . . . 2 . . . Communications Jammed . | . . . . . . . . . . . . . . . . . . Distress Signals . | . . . . . . . . . . . . . . . . . . Times Spotted 116 | . 6 . . 1 21 . 6 3 19 11 . 8 4 13 . . 24 Peak Tracking Total 13 | . 4 . . 1 5 . 7 4 5 6 . 4 3 13 . 1 8 Tactical Retreats 15 | . 1 . . . . . 2 . 2 . . . 1 3 . . 6 Traps | -11 -10 -10 -10 -9 -8 -7 -6 -5 -5 -5 -5 -5 -4 -3 -2 -2 -1 ------- Run | Yrd Mat Min Exi Min Mat Fac Fac Fac Ext Cet Arc Hub Fac Res Res DSF Acc Traps Triggered 7 | . . . . . . . . . . . . 1 . . . 3 3 Indirectly . | . . . . . . . . . . . . . . . . . . Trap Hack Attempts . | . . . . . . . . . . . . . . . . . . Triggered . | . . . . . . . . . . . . . . . . . . Disarmed . | . . . . . . . . . . . . . . . . . . Reprogrammed 16 | . . . . . . . . . 1 . . . 14 1 . . . Reused 1 | . . . . . . . . . . . . . . 1 . . . Traps Extracted . | . . . . . . . . . . . . . . . . . . Installed . | . . . . . . . . . . . . . . . . . . Triggered 1 | . . . . . . . . . . . . . . 1 . . . Machines | -11 -10 -10 -10 -9 -8 -7 -6 -5 -5 -5 -5 -5 -4 -3 -2 -2 -1 ---------- Run | Yrd Mat Min Exi Min Mat Fac Fac Fac Ext Cet Arc Hub Fac Res Res DSF Acc Machines Disabled 19 | . . . . . 10 . 2 . 2 . 2 2 . . . . 1 Max in Single Turn 2 | . . . . . 2 . 1 . 1 . 1 . . . . . 1 Garrison Access 5 | . . . . . 1 . 2 . . . . . . 2 . . . Network Hub 1 | . . . . . . . . . . . . 1 . . . . . Machines Repaired . | . . . . . . . . . . . . . . . . . . Machines Dismantled . | . . . . . . . . . . . . . . . . . . Machines Sabotaged 1 | . . . . . . . . . . . . 1 . . . . . Overloaded Fab Kills . | . . . . . . . . . . . . . . . . . . Hacking | -11 -10 -10 -10 -9 -8 -7 -6 -5 -5 -5 -5 -5 -4 -3 -2 -2 -1 --------- Run | Yrd Mat Min Exi Min Mat Fac Fac Fac Ext Cet Arc Hub Fac Res Res DSF Acc Machines Accessed 54 | . 2 . 2 1 2 . 3 3 13 1 . 7 10 7 1 . 2 Terminals 46 | . 2 . . . 2 . 2 3 13 1 . 7 9 4 1 . 2 Fabricators 2 | . . . . . . . . . . . . . 1 1 . . . Repair Stations . | . . . . . . . . . . . . . . . . . . Recycling Units . | . . . . . . . . . . . . . . . . . . Scanalyzers . | . . . . . . . . . . . . . . . . . . Garrison Access 3 | . . . . . . . 1 . . . . . . 2 . . . Total Hacks 210 | . 5 . 5 1 3 . 3 5 19 3 . 18 97 38 1 . 12 Successful 125 | . 2 . 5 1 . . 1 4 12 1 . 9 61 22 1 . 6 Failed 85 | . 3 . . . 3 . 2 1 7 2 . 9 36 16 . . 6 Catastrophic 11 | . 1 . . . . . 1 . 1 1 . 1 3 2 . . 1 Database Lockouts . | . . . . . . . . . . . . . . . . . . Manual 115 | . 5 . 1 . . . 3 4 2 1 . 16 63 14 . . 6 Terminals 192 | . 5 . . . 3 . 2 5 19 3 . 18 94 30 1 . 12 Fabricators 8 | . . . . . . . . . . . . . 3 5 . . . Repair Stations . | . . . . . . . . . . . . . . . . . . Recycling Units . | . . . . . . . . . . . . . . . . . . Scanalyzers . | . . . . . . . . . . . . . . . . . . Garrison Access 4 | . . . . . . . 1 . . . . . . 3 . . . Terminal Hacks 92 | . . . 5 1 . . . 2 12 1 . 4 49 12 1 . 5 Record 8 | . . . 4 . . . . . . . . . 2 2 . . . Part Schematic 1 | . . . . . . . . . . . . . 1 . . . . Robot Analysis 2 | . . . . . . . . . . . . . 2 . . . . Prototype ID Bank 13 | . . . . . . . . . . . . . 12 1 . . . Open Door 13 | . . . . 1 . . . 1 10 1 . . . . . . . Open DSF 1 | . . . . . . . . . . . . . . . 1 . . Level Access Points 4 | . . . . . . . . . . . . 1 1 1 . . 1 Branch Access Points 3 | . . . . . . . . 1 . . . . 1 1 . . . Machine Index 3 | . . . . . . . . . . . . . 1 1 . . 1 Terminal Index 3 | . . . . . . . . . . . . 1 1 1 . . . Unreport Threat 5 | . . . . . . . . . . . . . 5 . . . . Locate Traps 6 | . . . . . . . . . 1 . . 1 2 1 . . 1 Reprogram Traps 5 | . . . . . . . . . 1 . . . 3 1 . . . Dispatch Records 1 | . . . . . . . . . . . . . 1 . . . . Security Status 2 | . . . . . . . . . . . . . 2 . . . . Patrol Status 2 | . . . . . . . . . . . . . 2 . . . . Transport Status 2 | . . . . . . . . . . . . . 2 . . . . Intercept Status 1 | . . . . . . . . . . . . . 1 . . . . Recall Extermination 1 | . . . . . . . . . . . . . . . . . 1 Hauler Manifests 2 | . . . . . . . . . . . . . 1 1 . . . Registered Components 2 | . . . . . . . . . . . . . 1 1 . . . Registered Prototypes 3 | . . . . . . . . . . . . . 2 1 . . . Zone Layout 7 | . . . . . . . . . . . . 1 5 . . . 1 Security Stations 1 | . . . . . . . . . . . . . 1 . . . . Derelict Proto ID Bank 1 | . . . 1 . . . . . . . . . . . . . . Fabricator Hacks 3 | . . . . . . . . . . . . . 1 2 . . . Network Status 2 | . . . . . . . . . . . . . 1 1 . . . Load Schematic 1 | . . . . . . . . . . . . . . 1 . . . Repair Station Hacks . | . . . . . . . . . . . . . . . . . . Recycling Unit Hacks . | . . . . . . . . . . . . . . . . . . Scanalyzer . | . . . . . . . . . . . . . . . . . . Garrison Access Hacks 2 | . . . . . . . . . . . . . . 2 . . . Seal Access 2 | . . . . . . . . . . . . . . 2 . . . Unauthorized Hacks 28 | . 2 . . . . . 1 2 . . . 5 11 6 . . 1 Terminals 23 | . 2 . . . . . . 2 . . . 5 10 3 . . 1 Track 2 | . . . . . . . . . . . . . 2 . . . . Assimilate 2 | . . . . . . . . . . . . . 2 . . . . Botnet 15 | . 2 . . . . . . 2 . . . 3 4 3 . . 1 Operators 2 | . . . . . . . . . . . . . 2 . . . . Sabotage 2 | . . . . . . . . . . . . 2 . . . . . Fabricators 4 | . . . . . . . . . . . . . 1 3 . . . Report 1 | . . . . . . . . . . . . . . 1 . . . Fabnet 2 | . . . . . . . . . . . . . 1 1 . . . Haulers 1 | . . . . . . . . . . . . . . 1 . . . Repair Stations . | . . . . . . . . . . . . . . . . . . Recycling Units . | . . . . . . . . . . . . . . . . . . Scanalyzers . | . . . . . . . . . . . . . . . . . . Garrison Access 1 | . . . . . . . 1 . . . . . . . . . . Jam 1 | . . . . . . . 1 . . . . . . . . . . Data Cores Recovered 1 | . . . . . . . . . . . . . . 1 . . . Used . | . . . . . . . . . . . . . . . . . . Hacking Detections 34 | . 2 . . . 1 . 2 2 3 2 . 5 10 4 1 . 2 Full Trace Events 1 | . . . . . . . . . . . . . . 1 . . . Feedback Events 1 | . . . . . . . . . . . . . . 1 . . . Hackware Fried 1 | . . . . . . . . . . . . . . 1 . . . Feedback Blocked . | . . . . . . . . . . . . . . . . . . Robot Schematics Acquired . | . . . . . . . . . . . . . . . . . . Robots Built . | . . . . . . . . . . . . . . . . . . Authchips . | . . . . . . . . . . . . . . . . . . Time . | . . . . . . . . . . . . . . . . . . Total Robot Build Rating . | . . . . . . . . . . . . . . . . . . Part Schematics Acquired 1 | . . . . . . . . . . . . . 1 . . . . Parts Built . | . . . . . . . . . . . . . . . . . . Authchips . | . . . . . . . . . . . . . . . . . . Time . | . . . . . . . . . . . . . . . . . . Total Part Build Rating . | . . . . . . . . . . . . . . . . . . Parts Repaired . | . . . . . . . . . . . . . . . . . . Time . | . . . . . . . . . . . . . . . . . . Parts Recycled . | . . . . . . . . . . . . . . . . . . Recycled Matter . | . . . . . . . . . . . . . . . . . . Retrieved Matter . | . . . . . . . . . . . . . . . . . . Retrieved Components . | . . . . . . . . . . . . . . . . . . Parts Scanalyzed . | . . . . . . . . . . . . . . . . . . Part Schematics Acquired . | . . . . . . . . . . . . . . . . . . Parts Damaged . | . . . . . . . . . . . . . . . . . . Bothacking | -11 -10 -10 -10 -9 -8 -7 -6 -5 -5 -5 -5 -5 -4 -3 -2 -2 -1 ------------ Run | Yrd Mat Min Exi Min Mat Fac Fac Fac Ext Cet Arc Hub Fac Res Res DSF Acc Used RIF Installer . | . . . . . . . . . . . . . . . . . . Robots Hacked 1 | . . . . . . . . . . . . . . 1 . . . Non-combat . | . . . . . . . . . . . . . . . . . . Combat 1 | . . . . . . . . . . . . . . 1 . . . Robot Hacks Applied . | . . . . . . . . . . . . . . . . . . Relay Couplers Released 4 | . . . . . 2 . 2 . . . . . . . . . . Machine Destruction 4 | . . . . . 2 . 2 . . . . . . . . . . Fabnet Peak Effective % 4 | . . . . . . . . . . . . . . 3 4 4 1 Autooverrided 1 | . . . . . . . . . . . . . . 1 . . . Robots Rewired 9 | . . . . . . . . . 9 . . . . . . . . Allies Hacked . | . . . . . . . . . . . . . . . . . . Hacks Repelled . | . . . . . . . . . . . . . . . . . . Allies | -11 -10 -10 -10 -9 -8 -7 -6 -5 -5 -5 -5 -5 -4 -3 -2 -2 -1 -------- Run | Yrd Mat Min Exi Min Mat Fac Fac Fac Ext Cet Arc Hub Fac Res Res DSF Acc Total Allies 35 | . . 2 . . . . . . 25 5 . . 2 1 . . . Largest Group 14 | . . 2 . . . . . . 14 14 7 4 1 . . . . Highest-Rated Group 764 | . . 48 . . . . . . 504 764 531 384 26 . . . . Highest-Rated Ally 159 | . . 31 . . . . . . 159 150 96 96 26 . . . . Total Orders 2 | . . . . . . . . . 2 . . . . . . . . STAY 1 | . . . . . . . . . 1 . . . . . . . . FOLLOW 1 | . . . . . . . . . 1 . . . . . . . . Ally Attacks 258 | . . 13 . . . . . . 111 78 21 34 . 1 . . . Total Damage 6607 | . . 170 . . . . . . 2049 2452 707 1212 . 17 . . . Kills 37 | . . 2 . . . . . . 15 11 4 5 . . . . . Allies Corrupted . | . . . . . . . . . . . . . . . . . . Allies Melted 1 | . . . . . . . . . 1 . . . . . . . . Intel | -11 -10 -10 -10 -9 -8 -7 -6 -5 -5 -5 -5 -5 -4 -3 -2 -2 -1 ------- Run | Yrd Mat Min Exi Min Mat Fac Fac Fac Ext Cet Arc Hub Fac Res Res DSF Acc Robot Analysis Total 2 | . . . . . . . . . . . . . 2 . . . . Derelict Logs Recovered 3 | . . 1 . 2 . . . . . . . . . . . . . Drone Launches . | . . . . . . . . . . . . . . . . . . Drone Recoveries . | . . . . . . . . . . . . . . . . . . Exploration | -11 -10 -10 -10 -9 -8 -7 -6 -5 -5 -5 -5 -5 -4 -3 -2 -2 -1 ------------- Run | Yrd Mat Min Exi Min Mat Fac Fac Fac Ext Cet Arc Hub Fac Res Res DSF Acc Turns Passed 5969 | . 222 42 421 1463 626 574 345 97 482 287 72 215 203 475 21 36 388 Spaces Moved 7201 | 1 157 36 242 436 193 433 908 286 569 397 90 581 714 1148 90 55 865 Core 1 | . . . . . 1 . . . . . . . . . . . . Treads . | . . . . . . . . . . . . . . . . . . Legs 1231 | 1 157 36 242 436 192 167 . . . . . . . . . . . Wheels . | . . . . . . . . . . . . . . . . . . Hover . | . . . . . . . . . . . . . . . . . . Flight 5969 | . . . . . . 266 908 286 569 397 90 581 714 1148 90 55 865 Fastest Speed 5 | 120 120 120 120 330 260 29 23 23 23 23 23 5 5 5 23 18 13 Average Speed 62 | 120 120 120 170 330 287 118 25 23 23 24 23 22 22 22 23 24 26 Slowest Speed 1150 | 120 120 120 330 330 1150 260 29 23 23 88 23 23 23 23 23 27 32 Overloaded Moves 68 | . . . . . . . . . . . . 20 10 18 . . 20 Propulsion Burnouts . | . . . . . . . . . . . . . . . . . . Robots Hopped 10 | . . . . . . . . . 1 . . 2 3 2 . . 2 Cave-ins Triggered 1 | . . . . . . . . . . . . . . . . . 1 Exploration Rate (%) 37 | 2 36 15 60 88 29 8 30 11 59 68 76 48 20 43 5 48 27 Regions Visited 17 Branch Regions 7 Pre-discovered Areas 2 | . . . 1 1 . . . . . . . . . . . . . Known Exits Taken 9 | . . . . . . . 1 1 1 1 1 1 1 1 1 . . Unknown Exits Taken 7 | 1 1 1 1 1 1 1 . . . . . . . . . . . Scrap Searched 4 | . . . . 4 . . . . . . . . . . . . . Spaces Dug 129 | . . . . . 5 2 7 4 64 . . 4 9 13 . . 21 Terrain Destroyed 346 | . . . . 25 92 2 7 4 83 35 . 4 9 13 . . 72 Melee 64 | . . . . . . 2 7 4 4 . . 4 9 13 . . 21 Projectile 6 | . . . . 2 4 . . . . . . . . . . . . AOE 276 | . . . . 23 88 . . . 79 35 . . . . . . 51 Terrain Rammed . | . . . . . . . . . . . . . . . . . . Walls Destroyed . | . . . . . . . . . . . . . . . . . . Machines Disabled . | . . . . . . . . . . . . . . . . . . Actions | -11 -10 -10 -10 -9 -8 -7 -6 -5 -5 -5 -5 -5 -4 -3 -2 -2 -1 --------- Run | Yrd Mat Min Exi Min Mat Fac Fac Fac Ext Cet Arc Hub Fac Res Res DSF Acc Total 8312 | . 179 35 253 458 250 485 975 301 829 569 129 650 733 1328 89 74 975 Wait 680 | . 10 . . 7 23 11 22 5 148 152 32 47 8 153 . . 62 Move 7163 | . 156 35 241 435 192 432 907 285 566 396 89 576 707 1143 89 54 860 Hop 10 | . . . . . . . . . 1 . . 2 3 2 . . 2 Pick Up 32 | . 3 . 3 9 3 6 3 1 . 1 . . . 2 . . 1 Fast Attach 51 | . . . 2 2 5 8 10 . 1 3 2 1 2 7 . 5 3 Attach 17 | . . . . . 3 1 4 2 2 . 1 . 1 . . . 3 Detach 11 | . . . 1 . 1 3 2 . 3 1 . . . . . . . Swap 8 | . . . 1 1 . . 1 1 1 1 . . . . . . 2 Drop 44 | . 2 . 5 1 1 16 6 . 3 3 . . 1 4 . 1 1 Fire 51 | . 8 . . 3 21 . . . 7 7 . . . . . . 5 Melee 147 | . . . . . . 8 20 7 42 5 5 6 11 17 . . 26 Ram . | . . . . . . . . . . . . . . . . . . Kick 1 | . . . . . 1 . . . . . . . . . . . . Crush . | . . . . . . . . . . . . . . . . . . Escape Stasis 42 | . . . . . . . . . . . . 18 . . . 14 10 Rewire 55 | . . . . . . . . . 55 . . . . . . . . Trap . | . . . . . . . . . . . . . . . . . . Miscellaneous . | . . . . . . . . . . . . . . . . . . Route ------- -11/Scrapyard -10/Materials -10/Mines -10/Exiles -9/Mines -8/Materials (discovered 2 exits: [*Fac] / Sto) -7/Factory -6/Factory (discovered 3 exits: *Fac x2 / *Low) -5/Factory (discovered 5 exits: *Fac / Upp x2 / *Ext x2) -5/Extension (discovered 2 exits: *Fac / *Cet) -5/Cetus (discovered 2 exits: *Fac / *Arc) -5/Archives -5/Hub_04(d) (discovered 4 exits: *Fac x4) -4/Factory (discovered 7 exits: *Res x4 / Upp x2 / Arm) -3/Research (discovered 5 exits: *Res x3 / Qua x2) -2/Research -2/DSF -1/Access To Epsilon Eridani History --------- Turn | Location | Event 1 | -11/Scrapyard | Discovered new exit (range 0) 1 | -11/Scrapyard | Entered Materials 204 | -10/Materials | Discovered new exit (range 7) 223 | -10/Materials | Entered Mines 226 | -10/Mines | Assembled infested the area 259 | -10/Mines | Deemed a non-threat by the Exiles lab entrance 261 | -10/Mines | Discovered new exit (range 5) 265 | -10/Mines | Entered Exiles 307 | -10/Exiles | Met 8R-AWN 315 | -10/Exiles | Build established: Mutant 326 | -10/Exiles | Met EX-HEX 361 | -10/Exiles | Met EX-BIN 378 | -10/Exiles | Aligned with FarCom system 379 | -10/Exiles | Given EX-Vault access code 409 | -10/Exiles | Opened EX-Vault 419 | -10/Exiles | Found Firepult 458 | -10/Exiles | Warned to stay clear of 0b10 Research branches 515 | -10/Exiles | Met EX-DEC 522 | -10/Exiles | Learned location of Zion (-7) 645 | -10/Exiles | Discovered new exit (range 14) 686 | -10/Exiles | Left Exiles lab with Firepult 686 | -10/Exiles | Entered Mines 700 | -9/Mines | Met a Derelict bent on vengeance 1023 | -9/Mines | Learned Materials terminal intel 1891 | -9/Mines | Discovered new exit (range 15) 1963 | -9/Mines | Met a Derelict shopkeep closing up shop 2149 | -9/Mines | Entered Materials 2149 | -8/Materials | Evolved 4 slots: Power x1, Propulsion x1, Utility x2 2150 | -8/Materials | Identified exit to Storage 2151 | -8/Materials | Loaded intel: 12 terminal locations 2725 | -8/Materials | Discovered new exit (range 8) 2775 | -8/Materials | Entered Factory 2775 | -7/Factory | Evolved 2 slots: Utility x2 3002 | -7/Factory | Discovered new exit (range 15) 3040 | -7/Factory | Build established: Scavenger-Mutant 3349 | -7/Factory | Entered another Factory area 3349 | -6/Factory | Evolved 2 slots: Propulsion x2 3500 | -6/Factory | Discovered new exit (range 8) 3502 | -6/Factory | Identified exit to Lower Caves 3561 | -6/Factory | Discovered new exit (range 13) 3569 | -6/Factory | Identified exit to Factory 3686 | -6/Factory | Discovered exit to Factory (range 11) 3694 | -6/Factory | Entered another Factory area 3694 | -5/Factory | Evolved 2 slots: Utility x2 3734 | -5/Factory | Identified exit to Upper Caves 3734 | -5/Factory | Identified exit to Extension 3764 | -5/Factory | Discovered new exit (range 5) 3765 | -5/Factory | Identified exit to Factory 3791 | -5/Factory | Entered Extension 3916 | -5/Extension | Rescued a captive Derelict 3917 | -5/Extension | Rescued a captive Derelict 3959 | -5/Extension | Rescued a captive Derelict 3967 | -5/Extension | Rescued a captive Derelict 3976 | -5/Extension | Lost 3 allies 4066 | -5/Extension | Rescued A7 4101 | -5/Extension | Rescued a captive Derelict 4102 | -5/Extension | Rescued a captive Derelict 4137 | -5/Extension | Rescued a captive Derelict 4158 | -5/Extension | Rescued a captive Derelict 4160 | -5/Extension | Rescued a captive Derelict 4187 | -5/Extension | Rescued a captive Derelict 4188 | -5/Extension | Rescued a captive Derelict 4194 | -5/Extension | Rescued a captive Derelict 4207 | -5/Extension | Rescued a captive Derelict 4208 | -5/Extension | Rescued a captive Derelict 4211 | -5/Extension | Rescued a captive Derelict 4215 | -5/Extension | Discovered exit to Factory (range 10) 4216 | -5/Extension | Discovered new exit (range 6) 4259 | -5/Extension | Identified exit to Cetus 4273 | -5/Extension | Entered Cetus 4273 | -5/Cetus | Accompanied by 14 allies (A7) 4278 | -5/Cetus | Acquired a Cetus Manufacturing Module code from A7 4279 | -5/Cetus | Spotted Cetus Guard 4279 | -5/Cetus | Spotted Cetus Guard 4280 | -5/Cetus | Spotted Cetus Guard 4290 | -5/Cetus | Spotted Cetus Guard 4296 | -5/Cetus | Allies destroyed Cetus Guard 4308 | -5/Cetus | Allies destroyed Cetus Guard 4309 | -5/Cetus | Allies destroyed Cetus Guard 4321 | -5/Cetus | Started Cetus Manufacturing Module 4331 | -5/Cetus | Escorted A7 to Cetus Mainframe 4332 | -5/Cetus | Lost 8 allies 4346 | -5/Cetus | Manufactured an Enhanced Grunt 4353 | -5/Cetus | Discovered new exit (range 15) 4370 | -5/Cetus | Build established: Scout 4371 | -5/Cetus | Manufactured an Enhanced Grunt 4396 | -5/Cetus | Manufactured an Enhanced Grunt 4421 | -5/Cetus | Manufactured an Enhanced Grunt 4446 | -5/Cetus | Manufactured an Enhanced Grunt 4461 | -5/Cetus | Spotted Cetus Guard 4461 | -5/Cetus | Spotted Cetus Guard 4463 | -5/Cetus | Spotted Cetus Guard 4477 | -5/Cetus | Spotted Cetus Guard 4505 | -5/Cetus | Extracted ID and sensor layout for unrecognized location from A7's data core 4506 | -5/Cetus | Allies destroyed Cetus Guard 4506 | -5/Cetus | Allies destroyed Cetus Guard 4508 | -5/Cetus | Allies destroyed Cetus Guard 4510 | -5/Cetus | Allies destroyed Cetus Guard 4515 | -5/Cetus | Discovered exit to Factory (range 16) 4520 | -5/Cetus | Met Revision 17 4527 | -5/Cetus | Identified exit to Archives 4536 | -5/Cetus | Lost 4 allies 4560 | -5/Cetus | Entered Archives 4560 | -5/Archives | Accompanied by 7 allies 4573 | -5/Archives | Met Zhirov 4576 | -5/Archives | Unable to access archive contents 4579 | -5/Archives | Reinforcements dispatched to Archives 4586 | -5/Archives | Discovered new exit (range 16) 4620 | -5/Archives | Identified exit to Hub_04(d) 4624 | -5/Archives | Reinforcements dispatched to Archives 4632 | -5/Archives | Entered Hub_04(d) 4632 | -5/Hub_04(d) | Accompanied by 4 allies 4633 | -5/Hub_04(d) | Discovered exit to Factory (range 12) 4726 | -5/Hub_04(d) | Garrison activated, responded to threat 4797 | -5/Hub_04(d) | Network Hub disabled 4800 | -5/Hub_04(d) | Spotted Lightning 4800 | -5/Hub_04(d) | Spotted Lightning 4800 | -5/Hub_04(d) | Spotted Lightning 4800 | -5/Hub_04(d) | Spotted Lightning 4800 | -5/Hub_04(d) | Spotted Lightning 4847 | -5/Hub_04(d) | Entered Factory 4847 | -4/Factory | Evolved 2 slots: Utility x2 4866 | -4/Factory | Build established: Hacker-Scout 4925 | -4/Factory | Identified exit to Upper Caves 4925 | -4/Factory | Identified exit to Armory 4925 | -4/Factory | Identified exit to Research 5050 | -4/Factory | Entered Research 5050 | -3/Research | Evolved 2 slots: Utility x2 5098 | -3/Research | System Shield fried by hacking feedback 5253 | -3/Research | Found Fusion Bomb Launcher 5275 | -3/Research | Identified exit to Research 5275 | -3/Research | Identified exit to Quarantine 5450 | -3/Research | Build established: Wizard-Scout 5525 | -3/Research | Entered another Research area 5525 | -2/Research | Evolved 2 slots: Propulsion x2 5546 | -2/Research | Identified exit to DSF 5546 | -2/Research | Entered DSF 5562 | -2/DSF | Discovered new exit (range 16) 5571 | -2/DSF | Additional patrols routed to DSF 5576 | -2/DSF | Identified exit to Access 5582 | -2/DSF | Entered Access 5582 | -1/Access | Evolved 2 slots: Propulsion x1, Utility x1 5600 | -1/Access | Lost 4 parts (3n1u) 5604 | -1/Access | Identified exit to Surface 5720 | -1/Access | Found Enh. Force Lance 5883 | -1/Access | Build established: Wizard-Ninja 5958 | -1/Access | Crushed by falling debris 5970 | *** | Escaped! Last Messages --------------- 05892_ Cld. VTOL Module destroyed. 05892_ Acquired 13 matter. 05937_ Slug penetrates Wall. 05937_ Hacking Suite destroyed. 05938_ Slug penetrates Wall. 05938_ Fusion Bomb Launcher destroyed. 05938_ Slug penetrates Wall. 05939_ ALERT: Security rotation in progress. 05958_ The unstable cave ceiling collapses. 05958_ Crushed by falling debris. 05958_ Cld. VTOL Module destroyed. 05958_ System corrupted by crushing effect (+1). 05958_ Structural Scanner destroyed. 05958_ System corrupted by crushing effect (+1). 05958_ Adv. Hacking Suite destroyed. 05958_ System corrupted by crushing effect (+2). 05962_ U-05 Engineer destroyed. 05966_ Main Access Shell breached. 05970_ ALERT: Suspicious intruders detected, dispatching Cutter reinforcements to area. Map ----- +----------------------------------------------------+ | # ????????????????????????????????????????????? | | # ????????????????????????????????????????????? | | # ????????????????????????????????????????????? | | # ????????????????????????????????????????????? | | + ????????????????????????????????????????????? | | # ????????????????????????????????????????????? | | # ????????????????????????????????????????????? | | # ????????????????????????????????????????????? | | # ????????????????????????????????????????????? | | # ????????????????????????????????????????????? | | #### ????????????????????????????????????????????? | | #### ????????????????????????????????????????????? | | ???# ??????????????????? ????????????????????????? | | #?#?+???????????????????? ???????????????????????? | | ???? ??????H??????? ?????????????????????????????? | | ??? ????????????????????????????????????????????? | | ? ???????????????????? ??????? ?????????????????? | | ????????????????##?????###??#?#?#?#??????????????? | | ?????????????????##??#????####?#???#?????????????? | | ??????????? ???####???#????#???#?#??????????????? | | ??????????? ?????"??? ?? ? "?"" ? ???????????? | | ??????????????"? """? ? ? ?? ?"?"? BB????????????? | | ????????????? ?? ??? ?""""""?"??"?BB? ??????????? | | ?????????????? ????"? " " ""?? ?? ???????????? | | ???????????? ? ? ? ? ?" "" "?""?" ???????????? | | ?????????#??? ? ??? " ?" @" " "??? ? ?? ????????? | | ??????????? ? ?? ? " ?" " "??" ? ? ????????? | | ????????????? ? " " """" """??BB??? ????????? | | ???????????? ? ??? ?" "??" BB ?????????? | | ????????????? ??? " "?"? ? ? ????????? | | ???????????? ??????#"#####"###############???????? | | ????????????w??##?######## ###############"??????? | | ?????????????#######?#?### ############### ??????? | | ??????????? ?#####?#??#?## cc ## ?" ??? | | ??????????? ##########?##g g c ##???????? | | ??????????? ##########?##g g "c" ##? ?? ??? | | ???????????? ? # g ""G"" ## ?????? | | ??????????? ?? # !%= ##??###??? | | ??????????? # = ######???? | | ????????????? ###h###############?????? | | ??? ?????? ? h ????? | | ?????? ?????? ???? | | ##### ###########? ?? ??? | | ##################### ######+############?"????? | | " ########## # ##########""" ??? | | """ ##?##??### # "#########"???? ? | | """ ##?? ? ## + # #""?? | | " ##?#? ? ## # # #""" | | ##??? ??## # # #""" | | ##?#?? ## # # " " | +----------------------------------------------------+ Best States ------------- Heat Dissipation 58 Coolant Potential 50 Energy Generation 39 Energy Capacity 430 Matter Stores 300 Matter Capacity 300 Sight Range 16 Terrain Scan Range 16 Terrain Scan Density 210 ECM Strength 2 Armor Coverage 375 Evasion (%) 66 Targeting Accuracy 5 Melee Accuracy 8 Offensive Hacking 50 Defensive Hacking 50 Item Schematics ----------------- Exp. Terrain Scan Processor | -4/Factory | Hacked Robot Schematics ------------------ None Fabricated ------------ Nothing Alien Tech Used ----------------- None Achievements -------------- Supersonic Challenges ------------ None Game ------ Seed OpticalLightpackArmor Manual? 0 Play Time 01:51:57 Cumulative 211.0 hours Start 2024.04.07 @ 13:48:51 End 2024.04.07 @ 23:48:38 Sessions 3 Manual Loads 0 Difficulty Rogue Special Mode None Game No. 212 Rogue 212 Adventurer 0 Explorer 0 Win Type 0 Total 5 Types 4/0/0/1/0/0/0/0/0 Lore% 68 Gallery% 77 Achievement% 62 Wizard Run 0 Options --------- Layout 1 ASCII 0 Keyboard 0 Movement Numpad Keybinds 0 Fullscreen 2 Font 24/Smallcaps Map View 50x35 Zoom Use 0% Tactical HUD 1 Map Filters NONE Filters NONE Steam 1 RUN: 0ec06063-e120-4a6f-9e35-cca6626ed5c2